Cogmind - Beta 13 @@@ ROGUE MODE // 2024.04.29 @ 00:02:03 Player: opdo Result: Self-destructed Performance ------------- Evolutions (2) 1000 Regions Visited (6) 1200 Robots Destroyed (23) 115 Value Destroyed (692) 692 Prototype IDs (24) 480 Alien Tech Used (0) 0 Bonus (300) 300 TOTAL SCORE: 3787 Bonus ------- Aligned with FarCom 300 Cogmind --------- Core Integrity 399/550 Matter 53/300 Energy 275/275 System Corruption 0% Temperature Cool (0) Movement Walking (130) Location -8/Storage Parts ------- > --- POWER (1) -------- Deuterium Engine > --- PROPULSION (4) --- Titanium Leg Titanium Leg Titanium Leg Titanium Leg > --- UTILITY (4) ------ Small Storage Unit Improved Terrain Scanner Improved Terrain Scan Processor Modified TNC > --- WEAPON (2) ------- Guided Missile Launcher > --- INVENTORY (8) ---- Deuterium Engine Light Deuterium Engine Light Deuterium Engine Carbon-fiber Leg Titanium Leg Weight Redist. System Peak State ------------ > --- POWER ------------ Deuterium Engine > --- PROPULSION ------- Titanium Leg Titanium Leg Titanium Leg Titanium Leg > --- UTILITY ---------- Small Storage Unit Improved Terrain Scanner Improved Terrain Scan Processor Modified TNC > --- WEAPON ----------- Guided Missile Launcher > --- INVENTORY -------- Deuterium Engine Light Deuterium Engine Light Deuterium Engine Carbon-fiber Leg Titanium Leg Weight Redist. System [Rating: 39] Favorites ----------- Power Ion Engine Engine Ion Engine Propulsion Aluminum Leg Leg Aluminum Leg Wheel Wheel Utility Small Storage Unit Device Improved Terrain Scanner Storage Small Storage Unit Processor Modified TNC Protection Hardened Light Armor Plating Weapon Assault Rifle Ballistic Gun Assault Rifle Launcher Grenade Launcher Build | -11 -10 -10 -10 -9 -8 -8 ------- Run | Yrd Mat Min Exi Min Mat Sto Slots Evolved 4 | . . . . . 4 . Power . | . . . . . . . Propulsion 2 | . . . . . 2 . Utility 2 | . . . . . 2 . Weapon . | . . . . . . . Parts Attached 35 | 7 2 3 . 2 15 6 Power 3 | 1 1 . . . 1 . Engine 3 | 1 1 . . . 1 . Core . | . . . . . . . Reactor . | . . . . . . . Propulsion 12 | 2 1 . . . 5 4 Treads . | . . . . . . . Leg 10 | 2 1 . . . 3 4 Wheel 2 | . . . . . 2 . Hover . | . . . . . . . Flight . | . . . . . . . Utility 6 | 2 . . . . 4 . Device 2 | 1 . . . . 1 . Storage 1 | 1 . . . . . . Processor 2 | . . . . . 2 . Hackware . | . . . . . . . Protection 1 | . . . . . 1 . Artifact . | . . . . . . . Weapon 14 | 2 . 3 . 2 5 2 Energy Gun . | . . . . . . . Energy Cannon . | . . . . . . . Ballistic Gun 10 | 2 . 2 . 1 4 1 Ballistic Cannon . | . . . . . . . Launcher 4 | . . 1 . 1 1 1 Special Weapon . | . . . . . . . Impact Weapon . | . . . . . . . Slashing Weapon . | . . . . . . . Piercing Weapon . | . . . . . . . Special Melee Weapon . | . . . . . . . Unidentified Prototypes 1 | . . . . . . 1 Parts Lost 7 | . 1 1 . . 5 . Power 1 | . 1 . . . . . Propulsion 3 | . . . . . 3 . Utility 1 | . . . . . 1 . Weapon 2 | . . 1 . . 1 . Highest Loss Streak 3 | . 1 1 . . 3 . To Critical Strikes . | . . . . . . . Average Slot Usage (%) 98 | . 99 96 100 100 95 99 Engine 11 | . 13 14 14 14 9 9 Leg 28 | . 28 28 28 28 25 34 Wheel 1 | . . . . . 7 1 Device 12 | . 14 14 14 14 9 9 Storage 12 | . 14 14 14 14 9 9 Processor 5 | . . . . . 10 18 Protection 1 | . . . . . 5 . Ballistic Gun 23 | . 28 23 28 28 16 17 Naked Turns . | . . . . . . . Heaviest Build 24 | 15 15 15 14 14 24 22 Greatest Support 68 | 20 20 20 20 20 40 68 Greatest Overweight (x) 4 | 4 . . . . 1 . Average Overweight (x) . | . . . . . . . Largest Inventory Capacity 8 | 8 8 8 8 8 8 8 Average Capacity 7 | 7 8 8 8 8 8 8 Most Carried 8 | 4 8 8 8 8 8 8 Average Carried 7 | 3 7 7 7 8 7 7 Final Capacity 8 | 8 8 8 8 8 8 8 Final Carried 8 | 4 8 7 8 8 8 6 Class Distribution -------------------- 54% | Skirmisher 45% | Mutant Dominant Class ---------------- Mutant | -10/Materials Mutant | -10/Mines Mutant | -10/Exiles Skirmisher | -9/Mines Skirmisher | -8/Materials Skirmisher | -8/Storage Resources | -11 -10 -10 -10 -9 -8 -8 ----------- Run | Yrd Mat Min Exi Min Mat Sto Matter Collected 747 | 201 234 71 . 56 56 129 Remotely . | . . . . . . . Salvage Created 698 | 21 278 64 . 71 119 145 Parts 54 | 3 20 4 . 4 13 10 Haulers Intercepted 2 | . 1 . . . . 1 Recyclers Shooed 1 | . 1 . . . . . Parts Field Recycled . | . . . . . . . Retrieved Matter . | . . . . . . . Parts Self-Destructed . | . . . . . . . Prevented . | . . . . . . . Kills | -11 -10 -10 -10 -9 -8 -8 ------- Run | Yrd Mat Min Exi Min Mat Sto Combat Hostiles Destroyed 18 | . 5 2 . 2 5 4 Guns 12 | . 5 2 . . 3 2 AOE 6 | . . . . 2 2 2 Classes Destroyed 8 | 1 2 . . 1 4 . Tunneler 2 | 1 . . . . 1 . Hauler 2 | . 1 . . . . 1 Mechanic 1 | . . . . . 1 . Swarmer 5 | . . . . . 3 2 Grunt 10 | . 5 2 . 1 . 2 Brawler 1 | . . . . 1 . . Sentry 1 | . . . . . 1 . Hunter 1 | . . . . . 1 . Best Kill Streak 5 | 1 3 2 . 2 5 2 Combat Bots Only 3 | . 3 2 . 2 3 2 Max Kills in Single Turn 2 | 1 1 1 . 1 2 2 Gunslinging . | . . . . . . . Exploded 2 | . . . . 1 2 2 Melee . | . . . . . . . Uniques/NPCs Destroyed . | . . . . . . . Combat | -11 -10 -10 -10 -9 -8 -8 -------- Run | Yrd Mat Min Exi Min Mat Sto Hostile Shots Fired 144 | . 31 15 . 1 69 28 Missed 31 | . 1 7 . 1 13 9 Damage Taken 1711 | . 394 113 . 37 875 292 Core 244 | . 62 15 . 16 77 74 Absorbed by Shields . | . . . . . . . Core Remaining (%) 81 | 100 . . . 62 . . Volleys Fired 73 | 2 24 4 . 2 27 14 Largest 2 | 2 2 2 . 2 2 2 Hottest 53 | 40 40 50 . 50 50 53 Shots Fired 135 | 4 48 8 . 4 46 25 Gun 124 | 4 48 5 . 2 43 22 Cannon . | . . . . . . . Launcher 11 | . . 3 . 2 3 3 Special . | . . . . . . . Kinetic 124 | 4 48 5 . 2 43 22 Thermal . | . . . . . . . Explosive 11 | . . 3 . 2 3 3 Electromagnetic . | . . . . . . . Robot Hit Streak 22 | 1 8 7 . 3 22 6 Robot Miss Streak 4 | 1 3 . . 1 4 3 Penetration Max . | . . . . . . . Secondary Targets 1 | . 1 . . . . . Max Gunslinging Chain 1 | . 1 . . . . . Shots Hit Robots 97 | 2 29 6 . 3 37 20 Core Hits 44 | 1 13 5 . 2 13 10 Critical Kills . | . . . . . . . Critical Parts Destroyed . | . . . . . . . Critical Strikes . | . . . . . . . Melee Attacks . | . . . . . . . Impact . | . . . . . . . Slashing . | . . . . . . . Piercing . | . . . . . . . Sneak Attacks . | . . . . . . . Combat Hostiles . | . . . . . . . Follow-up Attacks . | . . . . . . . Damage Inflicted 1868 | 24 361 143 . 133 645 562 Guns 1163 | 24 361 51 . 14 363 350 Cannons . | . . . . . . . Explosions 684 | . . 84 . 106 282 212 Melee . | . . . . . . . Ramming 21 | . . 8 . 13 . . Kinetic 1163 | 24 361 51 . 14 363 350 Thermal 83 | . . . . . 83 . Explosive 601 | . . 84 . 106 199 212 Electromagnetic . | . . . . . . . Impact . | . . . . . . . Slashing . | . . . . . . . Piercing . | . . . . . . . Highest Corruption . | . . . . . . . Average Corruption . | . . . . . . . Corruption Purged . | . . . . . . . Corruption Blocked . | . . . . . . . Overload Shots . | . . . . . . . Overflow Damage 35 | . . . . . 35 . Projectiles . | . . . . . . . Explosions 35 | . . . . . 35 . Melee . | . . . . . . . Knockbacks . | . . . . . . . Impact . | . . . . . . . Kinetic . | . . . . . . . Secondary . | . . . . . . . Self-Inflicted Damage 164 | . . . . 37 98 29 Shots 7 | . . . . 2 4 1 Rammed . | . . . . . . . Targets Rammed 4 | . 1 1 . 2 . . Kicked 4 | . 1 1 . 2 . . Crushed . | . . . . . . . Highest Temperature 36 | . 28 2 . . 36 6 Average Temperature 7 | . 7 2 . . 9 1 Received Heat Transfer 603 | . 258 39 . . 189 117 Siege Activations . | . . . . . . . Robots Corrupted . | . . . . . . . Combat Hostiles . | . . . . . . . Parts Fried . | . . . . . . . Impact Corruptions . | . . . . . . . Robots Melted . | . . . . . . . Combat Hostiles . | . . . . . . . Parts Melted . | . . . . . . . Heat Transferred 50 | . . . . . 50 . Parts Sabotaged . | . . . . . . . Parts Stolen . | . . . . . . . Parts Stripped . | . . . . . . . Power Chain Reactions . | . . . . . . . Alert | -11 -10 -10 -10 -9 -8 -8 ------- Run | Yrd Mat Min Exi Min Mat Sto Peak Influence 224 | 5 182 224 . 66 180 222 Initial 70 | . 3 70 . . 25 42 Average 77 | 2 82 189 . 65 62 73 Maximum Alert Level 1 | . . 1 . . . 1 Low Security (%) 97 | 100 100 80 . 100 100 98 Level 1 2 | . . 19 . . . 1 Level 2 . | . . . . . . . Level 3 . | . . . . . . . Level 4 . | . . . . . . . Level 5 . | . . . . . . . High Security . | . . . . . . . Max Security . | . . . . . . . Squads Dispatched 2 | . . . . . 1 1 Investigation 1 | . . . . . . 1 Extermination . | . . . . . . . Reinforcement 1 | . . . . . 1 . Assault . | . . . . . . . Garrison . | . . . . . . . Intercept . | . . . . . . . Searches Triggered . | . . . . . . . Construction Impeded . | . . . . . . . Haulers Reinforced . | . . . . . . . Active Scanning Responses . | . . . . . . . Cargo Convoy Interrupts . | . . . . . . . Stealth | -11 -10 -10 -10 -9 -8 -8 --------- Run | Yrd Mat Min Exi Min Mat Sto Distress Signals 3 | . 1 . . . 2 . Communications Jammed . | . . . . . . . Distress Signals . | . . . . . . . Times Spotted 39 | . 7 4 . 2 17 9 Peak Tracking Total 9 | . 4 4 . 1 9 6 Tactical Retreats 4 | . . 1 . . 1 2 Traps | -11 -10 -10 -10 -9 -8 -8 ------- Run | Yrd Mat Min Exi Min Mat Sto Traps Triggered . | . . . . . . . Indirectly . | . . . . . . . Trap Hack Attempts . | . . . . . . . Triggered . | . . . . . . . Disarmed . | . . . . . . . Reprogrammed . | . . . . . . . Reused . | . . . . . . . Traps Extracted . | . . . . . . . Installed . | . . . . . . . Triggered . | . . . . . . . Machines | -11 -10 -10 -10 -9 -8 -8 ---------- Run | Yrd Mat Min Exi Min Mat Sto Machines Disabled 7 | . 1 4 . . 2 . Max in Single Turn 3 | . 1 3 . . 1 . Machines Repaired . | . . . . . . . Machines Dismantled . | . . . . . . . Machines Sabotaged . | . . . . . . . Overloaded Fab Kills . | . . . . . . . Hacking | -11 -10 -10 -10 -9 -8 -8 --------- Run | Yrd Mat Min Exi Min Mat Sto Machines Accessed 9 | . 2 . 2 . 2 3 Terminals 7 | . 2 . . . 2 3 Fabricators . | . . . . . . . Repair Stations . | . . . . . . . Recycling Units . | . . . . . . . Scanalyzers . | . . . . . . . Garrison Access . | . . . . . . . Total Hacks 19 | . 6 . 2 . 4 7 Successful 12 | . 5 . 2 . 3 2 Failed 7 | . 1 . . . 1 5 Catastrophic . | . . . . . . . Database Lockouts . | . . . . . . . Manual 12 | . 6 . 1 . 3 2 Terminals 17 | . 6 . . . 4 7 Fabricators . | . . . . . . . Repair Stations . | . . . . . . . Recycling Units . | . . . . . . . Scanalyzers . | . . . . . . . Garrison Access . | . . . . . . . Terminal Hacks 5 | . 1 . 2 . 1 1 Record 1 | . . . 1 . . . Open Door 1 | . . . . . . 1 Unreport Threat 1 | . . . . . 1 . Zone Layout 1 | . 1 . . . . . Derelict Proto ID Bank 1 | . . . 1 . . . Fabricator Hacks . | . . . . . . . Repair Station Hacks . | . . . . . . . Recycling Unit Hacks . | . . . . . . . Scanalyzer . | . . . . . . . Garrison Access Hacks . | . . . . . . . Unauthorized Hacks 7 | . 4 . . . 2 1 Terminals 7 | . 4 . . . 2 1 Track 1 | . 1 . . . . . Botnet 5 | . 2 . . . 2 1 Operators 1 | . 1 . . . . . Fabricators . | . . . . . . . Repair Stations . | . . . . . . . Recycling Units . | . . . . . . . Scanalyzers . | . . . . . . . Garrison Access . | . . . . . . . Data Cores Recovered . | . . . . . . . Used . | . . . . . . . Hacking Detections 6 | . 1 . . . 2 3 Full Trace Events 2 | . . . . . . 2 Feedback Events . | . . . . . . . Feedback Blocked . | . . . . . . . Robot Schematics Acquired . | . . . . . . . Robots Built . | . . . . . . . Authchips . | . . . . . . . Time . | . . . . . . . Total Robot Build Rating . | . . . . . . . Part Schematics Acquired . | . . . . . . . Parts Built . | . . . . . . . Authchips . | . . . . . . . Time . | . . . . . . . Total Part Build Rating . | . . . . . . . Parts Repaired . | . . . . . . . Time . | . . . . . . . Parts Recycled . | . . . . . . . Recycled Matter . | . . . . . . . Retrieved Matter . | . . . . . . . Retrieved Components . | . . . . . . . Parts Scanalyzed . | . . . . . . . Part Schematics Acquired . | . . . . . . . Parts Damaged . | . . . . . . . Bothacking | -11 -10 -10 -10 -9 -8 -8 ------------ Run | Yrd Mat Min Exi Min Mat Sto Used RIF Installer . | . . . . . . . Robots Hacked . | . . . . . . . Non-combat . | . . . . . . . Combat . | . . . . . . . Robot Hacks Applied . | . . . . . . . Relay Couplers Released . | . . . . . . . Fabnet Peak Effective % . | . . . . . . . Robots Rewired . | . . . . . . . Allies Hacked . | . . . . . . . Hacks Repelled . | . . . . . . . Allies | -11 -10 -10 -10 -9 -8 -8 -------- Run | Yrd Mat Min Exi Min Mat Sto Total Allies . | . . . . . . . Largest Group . | . . . . . . . Highest-Rated Group . | . . . . . . . Highest-Rated Ally . | . . . . . . . Total Orders . | . . . . . . . Ally Attacks . | . . . . . . . Total Damage . | . . . . . . . Kills . | . . . . . . . Allies Corrupted . | . . . . . . . Allies Melted . | . . . . . . . Intel | -11 -10 -10 -10 -9 -8 -8 ------- Run | Yrd Mat Min Exi Min Mat Sto Robot Analysis Total . | . . . . . . . Derelict Logs Recovered 3 | . . 1 . 2 . . Drone Launches . | . . . . . . . Drone Recoveries . | . . . . . . . Exploration | -11 -10 -10 -10 -9 -8 -8 ------------- Run | Yrd Mat Min Exi Min Mat Sto Turns Passed 1736 | 91 264 147 268 321 373 272 Spaces Moved 1145 | 58 137 109 223 258 208 152 Core 9 | 9 . . . . . . Treads . | . . . . . . . Legs 1108 | 49 137 109 223 258 180 152 Wheels 28 | . . . . . 28 . Hover . | . . . . . . . Flight . | . . . . . . . Fastest Speed 50 | 50 120 120 120 120 80 120 Average Speed 122 | 122 120 120 120 120 124 129 Slowest Speed 250 | 250 120 120 120 120 190 130 Overloaded Moves . | . . . . . . . Propulsion Burnouts . | . . . . . . . Robots Hopped . | . . . . . . . Cave-ins Triggered . | . . . . . . . Exploration Rate (%) 34 | 3 35 36 59 62 24 25 Regions Visited 6 Branch Regions 4 Pre-discovered Areas 3 | . . 1 1 1 . . Known Exits Taken 1 | . . . . 1 . . Unknown Exits Taken 5 | 1 1 1 1 . 1 . Scrap Searched 4 | . . 1 . 3 . . Spaces Dug . | . . . . . . . Terrain Destroyed 78 | . . 9 . 19 30 20 Melee . | . . . . . . . Projectile . | . . . . . . . AOE 78 | . . 9 . 19 30 20 Terrain Rammed . | . . . . . . . Walls Destroyed . | . . . . . . . Machines Disabled . | . . . . . . . Actions | -11 -10 -10 -10 -9 -8 -8 --------- Run | Yrd Mat Min Exi Min Mat Sto Total 1353 | 70 189 116 223 265 282 208 Wait 59 | . 16 . . . 24 19 Move 1139 | 57 136 108 222 257 207 152 Hop . | . . . . . . . Pick Up 23 | 4 7 . 1 1 5 5 Fast Attach 12 | 7 . . . . 3 2 Attach 11 | . 1 1 . . 7 2 Detach 1 | . . . . . 1 . Swap 12 | . 1 2 . 2 5 2 Drop 19 | . 3 . . 1 3 12 Fire 73 | 2 24 4 . 2 27 14 Melee . | . . . . . . . Ram . | . . . . . . . Kick 4 | . 1 1 . 2 . . Crush . | . . . . . . . Escape Stasis . | . . . . . . . Rewire . | . . . . . . . Trap . | . . . . . . . Miscellaneous . | . . . . . . . Route ------- -11/Scrapyard -10/Materials -10/Mines (discovered 2 exits: [*Mat] / *Exi) -10/Exiles -9/Mines (discovered 2 exits: *Mat x2) -8/Materials -8/Storage History --------- Turn | Location | Event 23 | -11/Scrapyard | Discovered new exit (range 15) 92 | -11/Scrapyard | Entered Materials 329 | -10/Materials | Build established: Mutant 333 | -10/Materials | Discovered new exit (range 8) 356 | -10/Materials | Entered Mines 427 | -10/Mines | Found a hidden stash of uninstalled traps 435 | -10/Mines | Discovered new exit (range 11) 484 | -10/Mines | Learned location of Zion (-6) 496 | -10/Mines | Deemed a non-threat by the Exiles lab entrance 497 | -10/Mines | Discovered new exit (range 5) 503 | -10/Mines | Entered Exiles 533 | -10/Exiles | Met 8R-AWN 553 | -10/Exiles | Met EX-HEX 597 | -10/Exiles | Met EX-BIN 614 | -10/Exiles | Aligned with FarCom system 615 | -10/Exiles | Given EX-Vault access code 643 | -10/Exiles | Opened EX-Vault 651 | -10/Exiles | Found Modified TNC 680 | -10/Exiles | Warned to stay clear of 0b10 Research branches 716 | -10/Exiles | Met EX-DEC 755 | -10/Exiles | Discovered new exit (range 15) 771 | -10/Exiles | Left Exiles lab with Modified TNC 771 | -10/Exiles | Entered Mines 791 | -9/Mines | Learned Materials trap positions 799 | -9/Mines | YI-UF0 nonchalantly dropped a Grenade Launcher on the ground 900 | -9/Mines | Identified exit to Materials 1050 | -9/Mines | Discovered exit to Materials (range 13) 1071 | -9/Mines | Build established: Skirmisher 1075 | -9/Mines | Learned location of Storage (-8) 1092 | -9/Mines | Entered Materials 1092 | -8/Materials | Evolved 4 slots: Propulsion x2, Utility x2 1093 | -8/Materials | Loaded intel: 12 trap records 1167 | -8/Materials | Discovered new exit (range 13) 1287 | -8/Materials | Lost 3 parts (2n1w) 1465 | -8/Materials | Entered Storage 1650 | -8/Storage | Found Prototype Launcher 1730 | -8/Storage | Identified Gui. Missile Launcher 1737 | -8/Storage | Self-destructed Last Messages --------------- 01587_ K-01 Serf collects debris. 01636_ R-06 Scavenger collects Lgt. Treads. 01640_ R-06 Scavenger collects Lgt. Ion Engine. 01640_ Slug penetrates G-47 Trooper. 01640_ G-47 Trooper destroyed. 01643_ R-06 Scavenger collects Lgt. Ion Engine. 01650_ Dropped Weight Redist. System. 01650_ Acquired Prototype Launcher. 01651_ Dropped Mining Laser. 01653_ Acquired Weight Redist. System. 01664_ Slug penetrates G-47 Trooper. 01673_ G-47 Trooper destroyed. 01676_ Acquired 41 matter. 01678_ Acquired 38 matter. 01726_ Slug penetrates Wall. 01729_ Dropped Gauss Rifle. 01730_ Dropped Hpw. Shotgun. 01730_ Identified Gui. Missile Launcher. 01733_ S-10 Pest destroyed. 01737_ The unstable cave ceiling collapses. Map ----- +----------------------------------------------------+ | | | | | | | | | | | ?????????????????????????????????????????????????? | | ?????????????????????????????????????????????????? | | ?????????????????????????????????????????????????? | | ?????????????????????????????????????????????????? | | ?????????????????????????????????????????????????? | | ?????????????????????????????????????????????????? | | ???????????????? ????????? ?????????????????????? | | ????????????? ???????????? ??? ? ????????????????? | | ????????????????????? ?????????? ????????????????? | | ???????????#??????#??###??#??#???????????????????? | | ???????????#???#???#??#?#????? ??????????????????? | | ??????????##???#??#### ##?? ??""??#??????????????? | | ????????????#####?# #??"? ?? ???? ???????????? | | ??????????? ????## # "??????????????????????? | | ???????????????? #" """# "??"?"????#????????????? | | ??????????? ?????#T """#?????"? ##??????????????? | | ??????????? !?? #" """#?"????? #?#?????????????? | | ??????????# ] ## ? ? ??? ??#??#?#????????? | | ????????? # #?? ?????????#?#?????????? | | ???????#####+## # #########???????????????? | | ???? Y @[ rrkw k ???????? | | ???? g = ## ????????? | | ???? = ???? ????????? | | ????? ?#?? ??####+####?????????? | | ????? ##?? ? ?? ??????????? | | ?????? a ##??# ??? """ ?????#????? | | ?????? #+##+##Y## ##?##???# """ ?#????????? | | ?????? ?#? ??# #??#? ?# ""???#?????????? | | ???????#???# """ ?# ###?#?? # ? ????????????? | | ????????#?w# a""?? # #?### ? # ??? #??????#??? | | ?????????# #? ?""? ## ###?###?# """ ####?#????? | | ???????????? ? ?? ?# ######### "?"? #?#?#?????? | | ??????#??? ?#?##?#?## ####?##?# ??? #?#???#??? | | ??????????a#????? ## ######?##+#########?##?????# | | ?????????#???? ## ######### # ##?##??#?# | | ????????##?#?? ?""?+ + #?#??????# | | ????????#??#? ???" ######### # #??##?##?# | | ????????????? ?""" ?######## # ####?????# | | ???????????##? ? #####?### # ####?????? | | ??????????? ?##+#####?#??### #####?####/##?#???### | | ?????????????? ##???####### #?##?##### #######??? | | ????????? ??#?#?##?######### ########## ###T##?#?# | | ?????????##?##? #######?#### ##?###?### ## "? ??? | | ??????????? T ?a#####??###?# ########## ## " ??? | | ??????????????# #####?######= + "? ??? | +----------------------------------------------------+ Best States ------------- Heat Dissipation 31 Energy Generation 14 Energy Capacity 275 Matter Stores 300 Matter Capacity 300 Sight Range 16 Terrain Scan Range 16 Terrain Scan Density 110 Armor Coverage 150 Evasion (%) 55 Item Schematics ----------------- None Robot Schematics ------------------ None Fabricated ------------ Nothing Alien Tech Used ----------------- None Achievements -------------- None Challenges ------------ None Game ------ Seed GlidesysSingularityCutter Manual? 0 Play Time 00:12:49 Cumulative 47.1 hours Start 2024.04.28 @ 23:51:04 End 2024.04.29 @ 00:02:03 Sessions 1 Manual Loads 0 Difficulty Rogue Special Mode None Game No. 128 Rogue 126 Adventurer 2 Explorer 0 Win Type - Total 0 Types 0/0/0/0/0/0/0/0/0 Lore% 35 Gallery% 49 Achievement% 35 Wizard Run 0 Options --------- Layout 2 ASCII 0 Keyboard 0 Movement Arrows Keybinds 0 Fullscreen 2 Font 24/Smallcaps Map View 50x44 Zoom Use 0% Tactical HUD 1 Map Filters NONE Filters NONE Steam 1 RUN: 77fe5ed5-f940-4571-b6f5-579c690c2d26